bitfinex/quotes_ETHUSD_20230111
["timestamp","ask_amount","ask_price","bid_price","bid_amount"]
[1673434109631,0.13922555,1336.8,1336.7,42.62007296]
[1673434109841,0.13922555,1336.8,1336.7,43.73555117]
[1673434110045,0.13922555,1336.8,1336.7,42.62007296]
[1673434110859,0.13922555,1336.8,1336.7,43.73497845]
[1673434112472,0.13922555,1336.8,1336.7,40.37284706]
[1673434115391,0.13922555,1336.8,1336.7,35.73483086]
[1673434115601,0.13922555,1336.8,1336.7,39.2586487]
[1673434115841,0.13922555,1336.8,1336.7,38.14050126]
[1673434116228,0.13922555,1336.8,1336.7,38.14111337]
[1673434117324,0.13922555,1336.8,1336.7,39.25601886]
[1673434119319,0.13922555,1336.8,1336.7,38.14111337]
[1673434119502,0.13922555,1336.8,1336.7,39.25601886]
[1673434124153,0.13685799,1336.8,1336.7,39.25601886]
[1673434124313,0.13685799,1336.8,1336.7,38.14111337]
[1673434127793,0.13685799,1336.8,1336.7,34.61668342]
[1673434128896,0.13685799,1336.8,1336.7,35.73158891]
[1673434129103,0.13685799,1336.8,1336.7,34.61668342]
[1673434129320,0.13685799,1336.8,1336.7,38.13709834]
[1673434129530,0.13685799,1336.8,1336.7,34.61668342]
[1673434130866,0.13685799,1336.8,1336.7,35.73158891]
[1673434131317,0.13685799,1336.8,1336.7,39.25179417]
[1673434131898,0.13685799,1336.8,1336.7,35.73158891]
[1673434132108,0.13685799,1336.8,1336.7,38.1363018]
[1673434132734,0.13685799,1336.8,1336.7,39.25120729]
[1673434133201,0.13685799,1336.8,1336.7,35.73158891]
[1673434133413,0.13685799,1336.8,1336.7,39.25120729]
[1673434133744,0.13685799,1336.8,1336.7,35.73158891]
[1673434134796,0.13685799,1336.8,1336.7,37.4087203]
[1673434135095,0.13685799,1336.8,1336.7,35.73158891]
[1673434135897,0.13685799,1336.8,1336.7,39.25248549]
[1673434136942,0.13685799,1336.8,1336.7,40.92961688]
[1673434137361,0.13685799,1336.8,1336.7,36.29381481]
[1673434138344,0.13685799,1336.8,1336.7,39.8144941]
[1673434138558,0.13685799,1336.8,1336.7,40.93016382]
[1673434138889,0.13685799,1336.8,1336.7,42.05066929]
[1673434139356,0.13685799,1336.8,1336.7,38.52999]
[1673434139569,0.13685799,1336.8,1336.7,36.85285861]
[1673434140353,0.13685799,1336.8,1336.7,13.8483243]
[1673434140564,0.13685799,1336.8,1336.7,16.3483243]
[1673434140738,0.13685799,1336.8,1336.7,23.8294343]
[1673434140948,0.13685799,1336.8,1336.7,22.1444343]
[1673434141155,0.13685799,1336.8,1336.7,35.38487938]
[1673434141850,0.13685799,1336.8,1336.7,31.86171949]
[1673434142163,0.13685799,1336.8,1336.7,35.38488144]
[1673434142536,0.13685799,1336.8,1336.7,43.98623954]
[1673434142747,0.13685799,1336.8,1336.7,43.99565179]
[1673434142956,0.13685799,1336.8,1336.7,46.99565179]
[1673434148787,0.13685799,1336.8,1336.7,45.32465179]
[1673434148955,0.13390808,1336.8,1336.7,45.32465179]
[1673434151153,0.13390808,1336.8,1336.7,41.95984537]
[1673434151396,0.13390808,1336.8,1336.7,45.32465179]
[1673434153409,0.13390808,1336.8,1336.7,41.95984537]
[1673434155779,0.13390808,1336.8,1336.7,45.32465179]
[1673434158941,0.13390808,1336.8,1336.7,41.95574351]
[1673434159881,0.13390808,1336.8,1336.7,41.22940088]
[1673434160130,0.13390808,1336.8,1336.7,33.74829088]
[1673434160316,0.13390808,1336.8,1336.7,18.52061872]
[1673434161061,0.13390808,1336.8,1336.7,16.84461872]
[1673434161276,0.13390808,1336.8,1336.7,24.32572872]
[1673434161661,0.13390808,1336.8,1336.7,21.53301126]
[1673434163133,0.13390808,1336.8,1336.7,24.32572872]
[1673434163589,0.13390808,1336.8,1336.7,21.53301126]
[1673434169692,0.13390808,1336.8,1336.7,21.53101126]
[1673434169902,0.13390808,1336.8,1336.7,21.53301126]
[1673434171151,0.13089364,1336.8,1336.7,21.53301126]
[1673434173538,0.13089364,1336.8,1336.7,17.73535062]
[1673434173861,0.13089364,1336.8,1336.7,25.21646062]
[1673434174532,0.13089364,1336.8,1336.7,32.69757062]
[1673434175666,0.13089364,1336.8,1336.7,35.49028808]
[1673434176925,0.13089364,1336.8,1336.7,32.69757062]
[1673434177881,0.13089364,1336.8,1336.7,32.69557062]
[1673434178079,0.13089364,1336.8,1336.7,32.69757062]
[1673434178554,0.13089364,1336.8,1336.7,25.21646062]
[1673434187637,0.13089364,1336.8,1336.7,28.00917808]
[1673434188918,0.13089364,1336.8,1336.7,25.21646062]
[1673434192591,0.12747314,1336.8,1336.7,28.00917808]
[1673434193891,0.12747314,1336.8,1336.7,35.49028808]
[1673434196822,0.12747314,1336.8,1336.7,35.492205]
[1673434197438,0.12747314,1336.8,1336.7,28.011095]
[1673434198100,0.12747314,1336.8,1336.7,20.529985]
[1673434198251,0.12747314,1336.8,1336.7,18.29352024]
[1673434200996,0.12747314,1336.8,1336.7,10.81241024]
[1673434201196,0.12747314,1336.8,1336.7,10.35746865]
[1673434206132,0.12747314,1336.8,1336.7,4.56475119]
[1673434206133,7.60802314,1336.8,1336.7,4.56475119]
[1673434206373,7.67402314,1336.8,1336.7,4.09463348]
[1673434208169,7.67402314,1336.8,1336.7,4.0121703]
[1673434208809,7.67402314,1336.8,1336.7,5.13076162]
[1673434208968,7.67402314,1336.8,1336.7,5.19144033]
[1673434210016,15.15457314,1336.8,1336.7,5.19144033]
[1673434210272,7.67402314,1336.8,1336.7,5.19144033]
[1673434210999,7.54655,1336.8,1336.7,5.19144033]
[1673434212550,7.54655,1336.8,1336.7,3.51314876]
[1673434212879,16.7031,1336.8,1336.7,2.33387873]
[1673434213074,24.18365,1336.8,1336.7,2.33387873]
[1673434214913,24.18365,1336.8,1336.7,0.47736054]
[1673434215492,24.18365,1336.8,1336.7,2.33361927]
[1673434216339,24.18365,1336.8,1336.7,0.47736054]
[1673434222659,16.7031,1336.8,1336.7,0.47736054]
[1673434223110,1.742,1336.8,1336.7,0.47736054]
[1673434223272,1.676,1336.8,1336.7,2.33353027]
[1673434223948,1e-08,1336.8,1336.7,2.33353027]
[1673434225198,1e-08,1336.8,1336.7,3.84038599]
[1673434227224,1e-08,1336.8,1336.7,4.95897731]
[1673434227596,1e-08,1336.8,1336.7,3.84038599]
[1673434228256,1e-08,1336.8,1336.7,4.95897731]
[1673434228633,1e-08,1336.8,1336.7,3.84038599]
[1673434228843,1e-08,1336.8,1336.7,4.95897731]
[1673434229090,1e-08,1336.8,1336.7,2.33353027]
[1673434230630,14.96110001,1336.8,1336.7,2.33353027]
[1673434230839,15.02710001,1336.8,1336.7,2.33353027]
[1673434231158,22.50765001,1336.8,1336.7,2.33353027]
[1673434231415,22.50765001,1336.8,1336.7,0.47736054]
[1673434234573,15.02710001,1336.8,1336.7,0.47736054]
[1673434235162,15.02710001,1336.8,1336.7,2.33357563]
[1673434235829,15.02710001,1336.8,1336.7,0.47736054]
[1673434236141,15.02710001,1336.8,1336.7,2.33359717]
[1673434236319,15.02710001,1336.8,1336.7,0.47736054]
[1673434236743,22.50765001,1336.8,1336.7,0.47736054]
[1673434237200,15.02710001,1336.8,1336.7,0.47736054]
[1673434237387,22.50765001,1336.8,1336.7,0.47736054]
[1673434238663,15.02710001,1336.8,1336.7,0.47736054]
[1673434238860,22.50765001,1336.8,1336.7,0.47736054]
[1673434239068,15.02710001,1336.8,1336.7,0.47736054]
[1673434240325,15.02710001,1336.8,1336.7,2.33361829]
[1673434240533,7.54655001,1336.8,1336.7,2.33361829]
[1673434241728,0.06600001,1336.8,1336.7,2.33361829]
[1673434241896,7.48055001,1336.8,1336.7,2.33361829]
[1673434242111,7.54655001,1336.8,1336.7,2.33361829]
[1673434243788,0.06600001,1336.8,1336.7,2.33361829]
[1673434244003,16.15972269,1336.9,1336.8,1.91394285]
[1673434244358,18.07472269,1336.9,1336.8,1.91394285]
[1673434244729,25.55500269,1336.9,1336.8,1.91394285]
[1673434245780,27.23612499,1336.9,1336.8,1.91394285]
[1673434251450,25.55500269,1336.9,1336.8,1.91394285]
[1673434252300,25.55500269,1336.9,1336.8,3.77010526]
[1673434253027,25.55500269,1336.9,1336.8,1.91394285]
[1673434253241,25.55500269,1336.9,1336.8,3.7701047]
[1673434254178,25.55500269,1336.9,1336.8,1.91394285]
[1673434254608,25.55500269,1336.9,1336.8,3.77010702]
[1673434254772,25.55500269,1336.9,1336.8,1.91394285]
[1673434255504,18.07467269,1336.9,1336.8,1.91394285]
[1673434256035,10.59439269,1336.9,1336.8,1.91394285]
[1673434256445,12.27551499,1336.9,1336.8,1.91394285]
[1673434256684,10.59439269,1336.9,1336.8,3.770109]
[1673434258383,10.59439269,1336.9,1336.8,1.91394285]
[1673434259209,9.22899,1336.9,1336.8,3.7700237]
[1673434259439,9.22899,1336.9,1336.8,4.8295442]
[1673434259750,9.22899,1336.9,1336.8,5.94813552]
[1673434259967,9.22899,1336.9,1336.8,6.00881423]
[1673434260563,16.70898,1336.9,1336.8,4.89022291]
[1673434260767,24.18897,1336.9,1336.8,3.7700237]
[1673434260978,17.8297282,1336.9,1336.8,3.7700237]
[1673434262966,16.1447282,1336.9,1336.8,3.7700237]
[1673434264579,8.6647382,1336.9,1336.8,3.7700237]
[1673434265589,16.1447282,1336.9,1336.8,3.7700237]
[1673434265902,8.6647382,1336.9,1336.8,3.7700237]
[1673434270529,10.3458605,1336.9,1336.8,3.7700237]
[1673434270741,18.3870505,1336.9,1336.8,3.7700237]
[1673434270994,25.8670405,1336.9,1336.8,3.7700237]
[1673434271420,25.3058405,1336.9,1336.8,3.7700237]
[1673434272108,17.8258505,1336.9,1336.8,3.7700237]
[1673434272882,19.5108505,1336.9,1336.8,3.7700237]
[1673434274728,19.5108505,1336.9,1336.8,1.91394285]
[1673434275416,19.5108505,1336.9,1336.8,3.77012869]
[1673434277099,12.0308605,1336.9,1336.8,3.77012869]
[1673434277258,4.5508705,1336.9,1336.8,3.77012869]
[1673434277470,4.4868705,1336.9,1336.8,3.77012869]
[1673434279082,2.8057482,1336.9,1336.8,3.77012869]
[1673434279685,17.7657282,1336.9,1336.8,3.77012869]
[1673434279896,17.8297282,1336.9,1336.8,3.77012869]
[1673434280112,19.5108505,1336.9,1336.8,3.77012869]
[1673434282858,17.8258505,1336.9,1336.8,3.77012869]
[1673434283552,16.1447282,1336.9,1336.8,3.77012869]
[1673434285121,17.8258505,1336.9,1336.8,3.77012869]
[1673434286570,16.1447282,1336.9,1336.8,3.77012869]
[1673434286762,10.3458605,1336.9,1336.8,3.77012869]
[1673434288838,2.8658705,1336.9,1336.8,3.77012869]
[1673434289064,2.8658705,1336.9,1336.8,4.48063377]
[1673434289065,1.1207482,1336.9,1336.8,4.48063377]
[1673434289883,1.1207482,1336.9,1336.8,5.59922509]
[1673434290137,1.12200303,1336.9,1336.8,5.6599038]
[1673434290354,1.7471223,1337.0,1336.8,5.6599038]
[1673434290355,2.80293994,1337.0,1336.8,5.6599038]
[1673434290516,2.80293994,1337.0,1336.9,1.85618584]
[1673434293355,1.12181764,1337.0,1336.9,1.85618584]
[1673434293565,1.12181764,1337.0,1336.9,2.61305886]
[1673434294417,1.12181764,1337.0,1336.9,2.60974681]
[1673434294615,1.12181764,1337.0,1336.9,1.85287379]
[1673434295039,35.89970679,1337.1,1336.9,1.85287379]
[1673434295040,3.43003994,1337.1,1336.9,2.97146511]
[1673434295282,1.68291764,1337.1,1336.9,10.45145511]
[1673434295504,1.68291764,1337.1,1336.9,8.65926003]
[1673434295708,1.68291764,1337.1,1337.0,5.49505973]
[1673434295709,1.12181764,1337.1,1337.0,5.49505973]
[1673434296036,2.37052544,1337.2,1337.0,5.49505973]
[1673434296037,1.18422078,1337.2,1337.1,1.68291764]
[1673434296202,8.66253078,1337.2,1337.1,1.68291764]
[1673434296406,7.54231,1337.2,1337.1,1.68291764]
[1673434297458,16.14243764,1337.2,1337.1,1.68291764]
[1673434297695,15.02062,1337.2,1337.1,2.57448325]
[1673434300079,15.02062,1337.2,1337.1,1.68291764]
[1673434306956,15.02062,1337.2,1337.0,2.06067871]
[1673434307272,15.02062,1337.2,1337.0,2.0]
[1673434309777,15.02062,1337.2,1337.0,5.50288995]
[1673434309953,15.02062,1337.2,1337.0,5.56356866]
[1673434310318,15.02062,1337.2,1337.1,0.55635687]
[1673434310494,15.02062,1337.2,1337.0,2.0]
[1673434314516,15.01766521,1337.2,1336.9,20.38022476]
[1673434314728,15.01766521,1337.2,1336.9,27.6810868]
[1673434315047,15.01766521,1337.2,1336.9,28.79967812]
[1673434315304,15.01766521,1337.2,1336.9,27.6810868]
[1673434315453,15.01766521,1337.2,1337.0,2.76810868]
[1673434327502,15.01766521,1337.2,1337.0,2.77210868]
[1673434327713,15.01766521,1337.2,1337.0,2.76810868]
[1673434328250,15.01766521,1337.2,1337.0,3.8867]
[1673434330174,15.01766521,1337.2,1337.1,1.85569605]
[1673434331810,7.53935521,1337.2,1337.1,1.85569605]
[1673434332152,7.53935521,1337.2,1337.1,2.43600353]
[1673434334342,8.66117285,1337.2,1337.1,2.43600353]
[1673434341103,7.53935521,1337.2,1337.1,3.55459485]
[1673434341633,8.66077903,1337.2,1337.1,3.55459485]
[1673434341846,8.66077903,1337.2,1337.1,2.43600353]
[1673434341847,8.66078423,1337.2,1337.1,2.43600353]
[1673434343389,8.66079927,1337.2,1337.1,3.55459485]
[1673434343601,7.53935521,1337.2,1337.1,3.55459485]
[1673434343944,8.66080729,1337.2,1337.1,3.55459485]
[1673434344112,8.66092158,1337.2,1337.1,3.55459485]
[1673434344316,8.66092169,1337.2,1337.1,3.55459485]
[1673434344527,7.53935521,1337.2,1337.1,3.55459485]
[1673434344740,8.6609118,1337.2,1337.1,3.55459485]
[1673434344989,7.53935521,1337.2,1337.1,3.55459485]
[1673434345182,8.66091018,1337.2,1337.1,3.55459485]
[1673434345369,8.66091295,1337.2,1337.1,3.55459485]
[1673434346668,8.66094534,1337.2,1337.1,3.55459485]
[1673434349830,8.66094534,1337.2,1337.1,2.43600353]
[1673434350229,8.66094534,1337.2,1337.1,3.55459485]
[1673434351253,8.66094534,1337.2,1337.1,1.85569605]
[1673434352666,16.13925534,1337.2,1337.1,1.85569605]
[1673434360754,17.82037764,1337.2,1337.1,1.85569605]
[1673434361385,24.17709751,1337.2,1337.1,1.85569605]
[1673434361768,0.00235948,1337.1,1337.0,1.11859132]
[1673434361986,23.56088878,1337.1,1337.0,7.85332798]
[1673434362210,23.62488878,1337.1,1337.0,4.91400669]
[1673434362556,23.62488878,1337.1,1337.0,4.85332798]
[1673434362916,16.14601878,1337.1,1337.0,4.85332798]
[1673434364431,15.02409948,1337.1,1337.0,4.85332798]
[1673434365065,15.02409948,1337.1,1337.0,5.46407065]
[1673434365224,15.02409948,1337.1,1337.0,6.64334068]
[1673434367109,15.02409948,1337.1,1337.0,6.64042043]
[1673434367323,16.14601878,1337.1,1337.0,2.52435228]
[1673434367531,16.14601878,1337.1,1337.0,2.46367357]
[1673434370547,15.02409948,1337.1,1337.0,2.46367357]
[1673434370716,16.14601878,1337.1,1337.0,2.46367357]
[1673434373063,23.62488878,1337.1,1337.0,2.46367357]
[1673434373306,23.62488878,1337.1,1337.0,0.61074267]
[1673434373660,25.30601108,1337.1,1337.0,0.61074267]
[1673434374663,23.62488878,1337.1,1337.0,0.61074267]
[1673434381160,16.14601878,1337.1,1337.0,0.61074267]
[1673434382268,23.62488878,1337.1,1337.0,0.61074267]
[1673434382848,16.14601878,1337.1,1337.0,0.61074267]
[1673434385159,15.02409948,1337.1,1337.0,0.61074267]
[1673434387769,15.02409948,1337.1,1337.0,2.46660703]
[1673434388292,16.14601878,1337.1,1337.0,0.61074267]
[1673434388515,15.02409948,1337.1,1337.0,2.46661209]
[1673434389037,16.14601878,1337.1,1337.0,2.46661209]
[1673434389570,15.02409948,1337.1,1337.0,2.46661209]
[1673434389766,16.14601878,1337.1,1337.0,2.46661209]
[1673434390513,15.02409948,1337.1,1337.0,2.46661209]
[1673434390725,16.14601878,1337.1,1337.0,2.46661209]
[1673434393725,23.62488878,1337.1,1337.0,0.61074267]
[1673434396585,23.62488878,1337.1,1337.0,2.46664409]
[1673434397650,23.62488878,1337.1,1337.0,0.61074267]
[1673434398085,23.62488878,1337.1,1337.0,2.46664264]
[1673434400737,25.3036516,1337.1,1337.0,2.46664264]
[1673434401159,25.3036516,1337.1,1337.0,0.61074267]
[1673434401743,25.3036516,1337.1,1337.0,2.46667702]
[1673434403157,24.1817323,1337.1,1337.0,0.61074267]
[1673434403483,25.30329052,1337.1,1337.0,0.61074267]
[1673434404799,25.30329052,1337.1,1337.0,2.46668653]
[1673434405249,25.30329052,1337.1,1336.9,0.066]
[1673434405420,25.30329052,1337.1,1336.8,9.29624813]
[1673434405421,25.30529052,1337.1,1336.8,9.29624813]
[1673434406275,1.12155822,1337.0,1336.8,9.29624813]
[1673434406472,7.47999,1336.9,1336.8,9.29624813]
[1673434406681,7.54599,1336.9,1336.8,12.29624813]
[1673434407464,7.54599,1336.9,1336.8,4.74429157]
[1673434407657,7.54599,1336.9,1336.8,4.67829157]
[1673434407877,15.02598,1336.9,1336.8,4.67829157]
[1673434408047,22.50597,1336.9,1336.7,13.06730686]
[1673434408421,22.50597,1336.9,1336.7,3.98240686]
[1673434408569,22.50597,1336.9,1336.7,3.91640686]
[1673434408944,22.50597,1336.9,1336.7,1.67829157]
[1673434409098,27.75142122,1336.9,1336.7,1.67829157]
[1673434409313,6.03520702,1336.8,1336.6,0.066]
[1673434409571,6.03520702,1336.8,1336.5,1.67829157]
[1673434409572,29.92444,1336.7,1336.5,1.67829157]
[1673434409875,34.2509092,1336.7,1336.5,1.67829157]
[1673434410093,29.99044,1336.7,1336.5,1.67829157]
[1673434410412,35.37246742,1336.7,1336.5,1.67829157]
[1673434410721,37.19281949,1336.7,1336.4,5.17377084]
[1673434410879,0.5613,1336.6,1336.4,0.066]
[1673434411095,0.5613,1336.6,1336.3,1.7183636]
[1673434411096,22.44666,1336.5,1336.3,1.7183636]
[1673434411339,22.52703449,1336.5,1336.3,1.7183636]
[1673434413035,22.52703449,1336.5,1336.3,0.04007203]
[1673434415128,22.52703449,1336.5,1336.3,1.15750343]
[1673434415763,22.52703449,1336.5,1336.3,0.04007203]
[1673434418023,26.81521023,1336.5,1336.3,0.04007203]
[1673434418782,28.49521023,1336.5,1336.3,0.04007203]
[1673434419495,24.20703449,1336.5,1336.3,0.04007203]
[1673434424919,28.49521023,1336.5,1336.3,0.04007203]
[1673434425059,24.20703449,1336.5,1336.3,0.04007203]
[1673434430875,28.49521023,1336.5,1336.3,0.04007203]
[1673434434418,24.20703449,1336.5,1336.3,0.04007203]
[1673434434640,28.49521023,1336.5,1336.3,0.04007203]
[1673434436033,24.20703449,1336.5,1336.3,0.04007203]
[1673434444405,24.21303449,1336.5,1336.3,0.04007203]
[1673434449068,25.33459271,1336.5,1336.3,0.04007203]
[1673434453228,25.33459271,1336.5,1336.3,3.01425838]
[1673434453583,25.33459271,1336.5,1336.3,1.15750343]
[1673434454844,25.47384921,1336.5,1336.3,1.15750343]
[1673434455015,25.47384921,1336.5,1336.4,1.85675314]
[1673434455393,25.70384921,1336.5,1336.4,1.85675314]
[1673434457586,42.50665437,1336.5,1336.3,0.04007203]
[1673434457741,27.87283945,1336.4,1336.3,0.04007203]
[1673434457955,28.07809595,1336.4,1336.3,0.04007203]
[1673434458827,28.30809595,1336.4,1336.3,0.04007203]
[1673434459037,29.42974061,1336.4,1336.3,0.04007203]
[1673434460293,28.30809595,1336.4,1336.3,0.04007203]
[1673434460489,29.42975019,1336.4,1336.3,0.04007203]
[1673434462523,28.30809595,1336.4,1336.3,0.04007203]
[1673434462720,28.30809595,1336.4,1336.3,0.03729847]
[1673434462928,26.62209595,1336.4,1336.3,0.03729847]
[1673434463141,31.11539224,1336.4,1336.3,0.03729847]
[1673434465664,35.40356798,1336.4,1336.3,0.03729847]
[1673434465839,31.11539224,1336.4,1336.3,0.03729847]
[1673434466274,36.52376809,1336.4,1336.3,0.03729847]
[1673434466694,32.23559235,1336.4,1336.3,0.03729847]
[1673434467935,44.65169877,1336.4,1336.3,0.03729847]
[1673434468154,41.84982827,1336.4,1336.1,0.09823674]
[1673434468361,37.38108935,1336.2,1336.1,0.09823674]
[1673434468617,67.59242205,1336.2,1336.1,6.74e-06]
[1673434468827,64.79007251,1336.2,1336.1,6.74e-06]
[1673434468998,67.59242205,1336.2,1336.1,6.74e-06]
[1673434469219,60.50158272,1336.2,1336.1,6.74e-06]
[1673434469442,63.66769841,1336.2,1336.1,6.74e-06]
[1673434469830,51.89562267,1336.2,1336.1,6.74e-06]
[1673434470086,24.95392267,1336.2,1336.1,6.74e-06]
[1673434470279,36.12406203,1336.2,1336.1,6.74e-06]
[1673434470933,40.41047207,1336.2,1336.1,6.74e-06]
[1673434471144,43.60796203,1336.2,1336.1,6.74e-06]
[1673434471302,46.21468612,1336.2,1336.1,6.74e-06]
[1673434471822,41.92827608,1336.2,1336.1,6.74e-06]
[1673434472036,46.21468318,1336.2,1336.1,6.74e-06]
[1673434472276,41.78901958,1336.2,1336.1,6.74e-06]
[1673434472618,41.92832064,1336.2,1336.1,6.74e-06]
[1673434473242,41.78901958,1336.2,1336.1,6.74e-06]
[1673434473986,46.0758695,1336.2,1336.1,6.74e-06]
[1673434474455,46.21517114,1336.2,1336.1,6.74e-06]
[1673434474664,46.0758695,1336.2,1336.1,6.74e-06]
[1673434474870,46.07542731,1336.2,1336.1,6.74e-06]
[1673434475354,41.78901958,1336.2,1336.1,6.74e-06]
[1673434475793,46.07542731,1336.2,1336.1,6.74e-06]
[1673434475974,41.78901958,1336.2,1336.1,6.74e-06]
[1673434476154,40.6692,1336.2,1336.1,6.74e-06]
[1673434476370,41.78901958,1336.2,1336.1,6.74e-06]
[1673434479250,40.6692,1336.2,1336.1,6.74e-06]
[1673434479627,41.78901958,1336.2,1336.1,6.74e-06]
[1673434480282,40.6692,1336.2,1336.1,6.74e-06]
[1673434480496,38.9932,1336.2,1336.1,6.74e-06]
[1673434480671,36.5157,1336.2,1336.1,6.74e-06]
[1673434480881,36.5177,1336.2,1336.1,6.74e-06]
[1673434483718,14.066,1336.2,1336.1,6.74e-06]
[1673434483939,29.0338,1336.2,1336.1,6.74e-06]
[1673434484386,36.5177,1336.2,1336.1,6.74e-06]
[1673434485023,21.5499,1336.2,1336.1,6.74e-06]
[1673434485609,7.5499,1336.2,1336.1,6.74e-06]
[1673434486283,15.0338,1336.2,1336.1,6.74e-06]
[1673434487179,22.5177,1336.2,1336.1,6.74e-06]
[1673434488659,22.51479631,1336.2,1336.1,6.74e-06]
[1673434490903,22.51279631,1336.2,1336.1,6.74e-06]
[1673434491706,22.51479631,1336.2,1336.1,6.74e-06]
[1673434492544,22.51279631,1336.2,1336.1,6.74e-06]
[1673434494223,22.51479631,1336.2,1336.1,6.74e-06]
[1673434494433,22.51279631,1336.2,1336.1,6.74e-06]
[1673434494644,22.51479631,1336.2,1336.1,6.74e-06]
[1673434495635,22.51279631,1336.2,1336.1,6.74e-06]
[1673434496009,23.63261589,1336.2,1336.1,6.74e-06]
[1673434496750,22.51279631,1336.2,1336.1,6.74e-06]
[1673434497109,23.63261589,1336.2,1336.1,6.74e-06]
[1673434498024,15.03089631,1336.2,1336.1,6.74e-06]
[1673434498364,7.54699631,1336.2,1336.1,6.74e-06]
[1673434500228,7.54699631,1336.2,1336.1,0.12341457]
[1673434503168,7.54699631,1336.2,1336.1,1.98050995]
[1673434505272,15.03089631,1336.2,1336.1,1.98050995]
[1673434509469,15.03089631,1336.2,1336.1,1.85710212]
[1673434511379,15.03089631,1336.2,1336.1,2.29795412]
[1673434514202,7.54699631,1336.2,1336.1,2.29795412]
[1673434514563,0.06309631,1336.2,1336.1,2.29795412]
[1673434514770,7.54647631,1336.3,1336.1,5.09367709]
[1673434514931,15.03037631,1336.3,1336.2,1.85709538]
[1673434519605,16.15019589,1336.3,1336.2,1.85709538]
[1673434519919,15.03037631,1336.3,1336.2,1.85709538]
[1673434521972,7.54647631,1336.3,1336.2,1.85709538]
[1673434524178,8.66629589,1336.3,1336.2,1.85709538]
[1673434525269,7.54647631,1336.3,1336.1,1.62429014]
[1673434525445,8.66629589,1336.3,1336.1,1.55829014]
[1673434529036,16.14986589,1336.3,1336.1,1.55829014]
[1673434530670,23.63343589,1336.3,1336.1,0.44085874]
[1673434533043,23.63343589,1336.3,1336.1,6.74e-06]
[1673434533449,23.63343589,1336.3,1336.1,1.85703875]
[1673434535150,23.77271408,1336.3,1336.1,1.85703875]
[1673434537071,23.77271408,1336.3,1336.1,2.97447015]
[1673434537605,25.45240003,1336.3,1336.1,2.97447015]
[1673434539331,17.96883003,1336.3,1336.1,2.97447015]
[1673434539578,8.66629589,1336.3,1336.1,4.05532791]
[1673434539807,8.66629589,1336.3,1336.2,1.85703201]
[1673434540030,0.06309631,1336.3,1336.2,1.85703201]
[1673434540176,7.48334,1336.3,1336.2,1.85703201]
[1673434540391,0.06309631,1336.3,1336.2,2.97446341]
[1673434540637,17.54848589,1336.4,1336.2,4.04375716]
[1673434540842,17.54848589,1336.4,1336.3,1.85703201]
[1673434541377,9.22718589,1336.4,1336.3,1.85703201]
[1673434545114,16.71033589,1336.4,1336.2,2.25272515]
[1673434545336,16.71033589,1336.4,1336.2,2.18672515]
[1673434545545,16.71033589,1336.4,1336.2,1.06929375]
[1673434545797,16.71033589,1336.4,1336.2,2.92618343]
[1673434545964,16.71033589,1336.4,1336.2,1.06929375]
[1673434546173,16.71033589,1336.4,1336.2,2.9261866]
[1673434546494,16.71033589,1336.4,1336.2,1.06929375]
[1673434547059,18.39002184,1336.4,1336.2,1.06929375]
[1673434547271,16.84961408,1336.4,1336.2,1.06929375]
[1673434547445,18.52930003,1336.4,1336.2,1.06929375]
[1673434549331,18.52930003,1336.4,1336.1,12.42892971]
[1673434549332,26.01245003,1336.4,1336.1,12.42892971]
[1673434549571,26.01245003,1336.4,1336.2,1.85693073]
[1673434550195,1.11981958,1336.3,1336.2,1.85693073]
[1673434550407,16.08649958,1336.3,1336.2,1.85693073]
[1673434550622,16.14959589,1336.3,1336.2,1.85693073]
[1673434556224,8.66625589,1336.3,1336.2,1.85693073]
[1673434558561,25.31262184,1336.3,1336.1,7.94720674]
[1673434558733,1.12199225,1336.2,1336.1,7.94720674]
[1673434558937,23.57369225,1336.2,1336.1,1.92318845]
[1673434559150,23.57369225,1336.2,1336.1,6.74e-06]
[1673434559151,25.31647451,1336.2,1336.1,6.74e-06]
[1673434559371,25.31647451,1336.2,1336.1,1.85720396]
[1673434559672,23.63678856,1336.2,1336.1,6.74e-06]
[1673434560086,25.31647451,1336.2,1336.1,6.74e-06]
[1673434560446,23.94664985,1336.1,1336.0,0.11664018]
[1673434560644,24.00774616,1336.1,1336.0,1.97386437]
[1673434575565,24.00774616,1336.1,1336.0,0.11664018]
[1673434582821,25.68274616,1336.1,1336.0,0.11664018]
[1673434583024,25.69374616,1336.1,1336.0,0.11664018]
[1673434588462,26.81573841,1336.1,1336.0,0.11308247]
[1673434588611,27.37723841,1336.1,1336.0,0.11308247]
[1673434588803,25.69374616,1336.1,1336.0,0.11308247]
[1673434589018,25.69147631,1336.1,1336.0,0.11308247]
[1673434589479,26.81346856,1336.1,1336.0,0.11308247]
[1673434590190,25.69147631,1336.1,1336.0,0.11308247]
[1673434590377,26.81346856,1336.1,1336.0,0.11308247]
[1673434593026,27.37496856,1336.1,1336.0,0.11308247]
[1673434594846,29.05465451,1336.1,1336.0,0.11308247]
[1673434597362,27.93266226,1336.1,1336.0,0.11308247]
[1673434598278,27.37116226,1336.1,1336.0,0.11308247]
[1673434598856,31.6552811,1336.1,1336.0,0.11308247]
[1673434599151,27.51046285,1336.1,1336.0,0.11308247]
[1673434599468,27.37116226,1336.1,1336.0,0.11308247]
[1673434599627,29.61304189,1336.1,1336.0,0.11308247]
[1673434602050,27.93335594,1336.1,1336.0,0.11308247]
[1673434602479,28.49485594,1336.1,1336.0,0.11308247]
[1673434602694,30.17665089,1336.1,1336.0,0.11308247]
[1673434603014,30.1766532,1336.1,1336.0,0.11308247]
[1673434603852,28.49485594,1336.1,1336.0,0.11308247]
[1673434604064,32.7803241,1336.1,1336.0,0.11308247]
[1673434604299,31.43650607,1336.1,1336.0,0.11308247]
[1673434604475,35.58267364,1336.1,1336.0,0.11308247]
[1673434604693,32.91962469,1336.1,1336.0,0.11308247]
[1673434606247,58.97213656,1336.1,1336.0,0.11308247]
[1673434606516,58.64425693,1336.1,1336.0,0.11308247]
[1673434608511,60.31725693,1336.1,1336.0,0.11308247]
[1673434608874,60.31725693,1336.1,1336.0,0.11086599]
[1673434609341,59.35475524,1336.1,1336.0,0.11086599]
[1673434610572,59.35475524,1336.1,1335.9,8.9e-07]
[1673434610801,59.35475524,1336.1,1335.6,1.31890118]
[1673434610802,6.99,1335.8,1335.6,0.13546978]
[1673434611027,24.14613,1335.7,1335.6,0.13546978]
[1673434611255,24.43722631,1335.7,1335.6,0.13546978]
[1673434620251,7.54780631,1335.7,1335.6,0.13546978]
[1673434620575,0.06109631,1335.7,1335.6,1.62646978]
[1673434620804,40.92488631,1335.8,1335.6,4.20020552]
[1673434621012,40.92488631,1335.8,1335.6,2.3425489]
[1673434621013,40.92481631,1335.8,1335.6,2.3425489]
[1673434621228,33.43814631,1335.8,1335.6,2.3425489]
[1673434621438,15.03384631,1335.8,1335.6,2.3425489]
[1673434624187,15.03384631,1335.8,1335.6,0.8515489]
[1673434629872,7.54724631,1335.8,1335.6,0.8515489]
[1673434630668,15.03384631,1335.8,1335.6,0.8515489]
[1673434631402,7.54724631,1335.8,1335.6,0.8515489]
[1673434632440,15.03384631,1335.8,1335.6,2.70916499]